Cogmind - Beta 12 @@@ ROGUE MODE // 2023.04.04 @ 00:05:02 Player: kasaphescent Result: Destroyed by YS-BIS(z) with Makeshift Laser Performance ------------- Evolutions (4) 2000 Regions Visited (10) 2000 Robots Destroyed (61) 305 Value Destroyed (1547) 1547 Prototype IDs (25) 500 Alien Tech Used (0) 0 Bonus (156) 156 TOTAL SCORE: 6508 Bonus ------- Aligned with FarCom 300 Met Imprinter 300 Friendly Fire -444 Cogmind --------- Core Integrity 0/850 Matter 116/300 Energy 98/100 System Corruption 13% Temperature Cool (9) Movement Core (50) Location -6/Zion Parts ------- > --- POWER (1) -------- (None) > --- PROPULSION (6) --- (None) > --- UTILITY (6) ------ (None) > --- WEAPON (2) ------- Longsword +1 > --- INVENTORY (5) ---- Hardened Medium Armor Plating Improved Medium Armor Plating Autogun Rocket Launcher CR-A16's Pointy Stick Peak State ------------ > --- POWER ------------ Improved Deuterium Engine > --- PROPULSION ------- Light Treads Armored Treads Flexi-carbon Leg Compact Wheel Compact Wheel Armored Wheel > --- UTILITY ---------- High-capacity Storage Unit Enhanced Optical Array Advanced Terrain Scanner Advanced Terrain Scan Processor Improved Targeting Computer Armor Integrity Analyzer > --- WEAPON ----------- Longsword +1 > --- INVENTORY -------- Improved Deuterium Engine Fission Core Light Fission Core Armored Wheel High-capacity Matter Pod Terrain Scanner Hardened Medium Armor Plating Improved Light Armor Plating Improved Medium Armor Plating Arc Projector Arc Projector Plasma Rifle EM Pulse Cannon Autogun Assault Cannon Advanced Assault Cannon Rocket Launcher Mini Grenade Launcher Enhanced Flamer CR-A16's Pointy Stick [Rating: 52] Favorites ----------- Power Ion Engine Engine Ion Engine Power Core Light Fission Core Propulsion Aluminum Leg Treads Armored Treads Leg Aluminum Leg Wheel Compact Wheel Utility High-capacity Storage Unit Device Improved Heat Sink Storage High-capacity Storage Unit Processor Improved Targeting Computer Hackware System Shield Protection Hardened Medium Armor Plating Weapon Light Cannon Energy Gun Medium Laser Ballistic Gun Assault Rifle Ballistic Cannon Light Cannon Launcher Mini Grenade Launcher Slashing Weapon Longsword +1 Build | -11 -10 -10 -10 -9 -8 -7 -6 -6 -6 -6 ------- Run | Jun Mat Min Exi Min Mat Fac Fac Low Low Zio Slots Evolved 8 | . . . . . 4 2 2 . . . Power . | . . . . . . . . . . . Propulsion 4 | . . . . . 3 1 . . . . Utility 4 | . . . . . 1 1 2 . . . Weapon . | . . . . . . . . . . . Parts Attached 79 | 6 8 4 1 3 12 14 2 6 7 16 Power 7 | 1 . . 1 . . 3 . . . 2 Engine 5 | 1 . . 1 . . 2 . . . 1 Core 2 | . . . . . . 1 . . . 1 Reactor . | . . . . . . . . . . . Propulsion 27 | 2 2 . . 2 9 4 1 . 4 3 Treads 3 | . . . . . 1 . . . 2 . Leg 16 | 2 2 . . . 6 2 1 . 1 2 Wheel 8 | . . . . 2 2 2 . . 1 1 Hover . | . . . . . . . . . . . Flight . | . . . . . . . . . . . Utility 15 | 1 3 . . 1 2 2 1 4 . 1 Device 4 | . 2 . . . . . . 1 . 1 Storage 3 | 1 1 . . 1 . . . . . . Processor 5 | . . . . . 1 1 . 3 . . Hackware 1 | . . . . . . . 1 . . . Protection 2 | . . . . . 1 1 . . . . Artifact . | . . . . . . . . . . . Weapon 30 | 2 3 4 . . 1 5 . 2 3 10 Energy Gun 3 | 1 . . . . . . . . . 2 Energy Cannon . | . . . . . . . . . . . Ballistic Gun 2 | 1 1 . . . . . . . . . Ballistic Cannon 15 | . 2 2 . . 1 3 . 1 3 3 Launcher 6 | . . 2 . . . . . 1 . 3 Special Weapon . | . . . . . . . . . . . Impact Weapon . | . . . . . . . . . . . Slashing Weapon 4 | . . . . . . 2 . . . 2 Piercing Weapon . | . . . . . . . . . . . Special Melee Weapon . | . . . . . . . . . . . Unidentified Prototypes 2 | . . . . . . 2 . . . . Parts Lost 23 | . 1 . . . 2 1 . . 4 15 Power 2 | . . . . . . . . . . 2 Propulsion 12 | . 1 . . . 1 . . . 3 7 Utility 3 | . . . . . 1 . . . . 2 Weapon 6 | . . . . . . 1 . . 1 4 Highest Loss Streak 6 | . 1 . . . 2 1 . . 4 6 To Critical Strikes 1 | . . . . . . . . . . 1 Average Slot Usage (%) 95 | . 99 100 100 100 88 98 92 99 94 86 Engine 9 | . 14 14 14 14 9 7 6 6 6 5 Treads 3 | . . . . . 2 . . . 10 11 Leg 20 | . 28 28 28 14 30 23 20 20 7 4 Wheel 11 | . . . . 14 11 22 20 20 15 18 Device 7 | . 13 14 14 14 3 . . 1 6 5 Storage 9 | . 14 14 14 14 9 7 6 6 6 5 Processor 11 | . . . . . 4 13 13 21 26 23 Protection 2 | . . . . . 3 7 6 4 . . Energy Gun 1 | . 6 . . . . . . . . . Ballistic Cannon 14 | . 15 27 28 28 15 12 6 9 12 2 Slashing Weapon 1 | . . . . . . 2 6 2 . 3 Naked Turns 1 | . . . . . . . . . . 1 Heaviest Build 65 | 14 32 32 32 52 54 64 64 65 57 62 Greatest Support 50 | 20 20 20 20 26 50 42 42 42 44 44 Greatest Overweight (x) 4 | . 1 1 1 1 2 2 1 1 1 4 Average Overweight (x) . | . . 1 1 1 1 1 1 1 1 . Largest Inventory Capacity 20 | 8 15 15 15 20 20 20 20 20 20 20 Average Capacity 17 | 6 14 15 15 17 20 20 20 20 20 19 Most Carried 20 | 6 15 15 15 16 20 20 20 20 19 20 Average Carried 16 | 3 12 15 14 15 15 19 20 19 18 17 Final Capacity 20 | 8 15 15 15 20 20 20 20 20 20 5 Final Carried 20 | 6 15 15 15 16 20 20 20 19 19 5 Class Distribution -------------------- 72% | Mutant 14% | Skirmisher 10% | Assassin Dominant Class ---------------- Mutant | -10/Materials Mutant | -10/Mines Mutant | -10/Exiles Mutant | -9/Mines Mutant | -8/Materials Mutant | -7/Factory Mutant | -6/Factory Mutant | -6/Lower Caves Skirmisher | -6/Lower Caves Assassin | -6/Zion Resources | -11 -10 -10 -10 -9 -8 -7 -6 -6 -6 -6 ----------- Run | Jun Mat Min Exi Min Mat Fac Fac Low Low Zio Matter Collected 1961 | 223 398 90 . 34 150 258 119 146 218 325 Remotely . | . . . . . . . . . . . Salvage Created 1526 | . 597 25 . . 68 243 142 . 144 307 Parts 86 | . 31 10 . . 2 8 4 . 5 26 Haulers Intercepted 2 | . 2 . . . . . . . . . Recyclers Shooed . | . . . . . . . . . . . Parts Field Recycled . | . . . . . . . . . . . Retrieved Matter . | . . . . . . . . . . . Parts Self-Destructed 5 | . . . . . . . . . 5 . Prevented 2 | . . . . . . . . . 2 . Kills | -11 -10 -10 -10 -9 -8 -7 -6 -6 -6 -6 ------- Run | Jun Mat Min Exi Min Mat Fac Fac Low Low Zio Combat Hostiles Destroyed 36 | . 13 6 . . 3 2 . 1 7 4 Melee 1 | . . . . . . 1 . . . . Guns 7 | . 7 . . . . . . . . . Cannons 19 | . 5 . . . 3 1 . 1 7 2 AOE 8 | . . 6 . . . . . . . 2 Classes Destroyed 11 | . 3 1 . . 1 2 . . 1 3 Builder 1 | . 1 . . . . . . . . . Hauler 2 | . 2 . . . . . . . . . Recycler 3 | . . . . . . 2 1 . . . Swarmer 10 | . . 6 . . . . . . 4 . Grunt 18 | . 13 . . . 2 . . 1 2 . Duelist 1 | . . . . . . . . . 1 . Sentry 1 | . . . . . 1 . . . . . Programmer 2 | . . . . . . 2 . . . . Zionite 18 | . . . . . . . . . . 18 Savage 1 | . . . . . . . . . . 1 Mutant 4 | . . . . . . . . . . 4 Best Kill Streak 8 | . 4 3 . . 2 1 1 1 7 8 Combat Bots Only 7 | . 4 3 . . 2 1 . 1 7 3 Max Kills in Single Turn 3 | . 2 3 . . 1 1 1 1 1 3 Gunslinging . | . . . . . . . . . . . Exploded 3 | . . 3 . . . . . . . 1 Melee 1 | . . . . . . 1 . . . . Uniques/NPCs Destroyed . | . . . . . . . . . . . Combat | -11 -10 -10 -10 -9 -8 -7 -6 -6 -6 -6 -------- Run | Jun Mat Min Exi Min Mat Fac Fac Low Low Zio Damage Taken 4327 | . 652 91 . . 223 163 . 139 756 2303 Core 1112 | . 165 25 . . 30 28 . . 149 715 Absorbed by Shields . | . . . . . . . . . . . Regen/Repaired (Parts) 28 | . . . . . . . . . . 28 Core Remaining (%) 78 | 100 . . . 24 94 96 . . . . Volleys Fired 142 | . 42 5 . . 17 8 . 10 21 39 Largest 2 | . 2 1 . . 2 2 . 2 2 2 Hottest 110 | . 70 30 . . 70 70 . 70 70 110 Shots Fired 268 | . 84 5 . . 34 16 . 18 42 69 Gun 62 | . 60 . . . . . . . . 2 Cannon 191 | . 24 . . . 34 16 . 16 42 59 Launcher 15 | . . 5 . . . . . 2 . 8 Special . | . . . . . . . . . . . Kinetic 221 | . 54 . . . 34 16 . 16 42 59 Thermal 30 | . 30 . . . . . . . . . Explosive 15 | . . 5 . . . . . 2 . 8 Electromagnetic 2 | . . . . . . . . . . 2 Robot Hit Streak 15 | . 13 . . . 11 4 . 7 15 13 Robot Miss Streak 3 | . 3 . . . 2 3 . 1 3 2 Penetration Max . | . . . . . . . . . . . Secondary Targets . | . . . . . . . . . . . Shots Hit Robots 188 | . 57 . . . 24 13 1 13 29 51 Core Hits 97 | . 26 7 . . 6 4 1 3 17 33 Critical Kills . | . . . . . . . . . . . Critical Parts Destroyed . | . . . . . . . . . . . Critical Strikes 9 | . 3 . . . . . . 2 3 1 Burn 2 | . 2 . . . . . . . . . Blast 7 | . 1 . . . . . . 2 3 1 Melee Attacks 11 | . . . . . . 7 1 . . 3 Impact . | . . . . . . . . . . . Slashing 11 | . . . . . . 7 1 . . 3 Piercing . | . . . . . . . . . . . Sneak Attacks 3 | . . . . . . 2 1 . . . Combat Hostiles . | . . . . . . . . . . . Follow-up Attacks . | . . . . . . . . . . . Damage Inflicted 5081 | . 823 381 . . 405 484 90 255 533 2110 Guns 574 | . 551 . . . . . . . . 23 Cannons 2631 | . 270 . . . 405 168 . 223 533 1032 Explosions 1406 | . . 381 . . . . . 32 . 993 Melee 468 | . . . . . . 316 90 . . 62 Ramming 2 | . 2 . . . . . . . . . Kinetic 2905 | . 544 . . . 405 168 . 223 533 1032 Thermal 277 | . 277 . . . . . . . . . Explosive 1406 | . . 381 . . . . . 32 . 993 Electromagnetic 23 | . . . . . . . . . . 23 Impact . | . . . . . . . . . . . Slashing 468 | . . . . . . 316 90 . . 62 Piercing . | . . . . . . . . . . . Highest Corruption 13 | . . . . . . 7 . . . 13 Average Corruption 4 | . . . . . . 2 . . . 11 Corruption Purged . | . . . . . . . . . . . Corruption Blocked . | . . . . . . . . . . . Effects 32 | . . . . . . 16 . . . 16 Message Errors 5 | . . . . . . 2 . . . 3 Matter Fused 10 | . . . . . . 7 . . . 3 Heat Flow Errors 1 | . . . . . . 1 . . . . Energy Discharges 7 | . . . . . . 4 . . . 3 Data Loss (minor) 2 | . . . . . . 1 . . . 1 Data Loss (major) 1 | . . . . . . 1 . . . . Alerts 1 | . . . . . . . . . . 1 Misdirections 5 | . . . . . . . . . . 5 Overload Shots . | . . . . . . . . . . . Overflow Damage 155 | . . 3 . . . 99 . . . 53 Projectiles 33 | . . . . . . 10 . . . 23 Explosions 21 | . . 3 . . . . . . . 18 Melee 101 | . . . . . . 89 . . . 12 Knockbacks 38 | . 1 . . . 4 4 . 3 11 15 Impact . | . . . . . . . . . . . Kinetic 36 | . 1 . . . 4 4 . 3 9 15 Secondary 2 | . . . . . . . . . 2 . Self-Inflicted Damage 54 | . . 16 . . . . . 2 . 36 Shots 3 | . . 1 . . . . . 1 . 1 Rammed . | . . . . . . . . . . . Targets Rammed 2 | . 2 . . . . . . . . . Kicked 2 | . 2 . . . . . . . . . Crushed . | . . . . . . . . . . . Highest Temperature 204 | . 120 . . . 12 204 . 26 20 18 Average Temperature 34 | . 51 . . . 5 105 . 16 6 10 Received Heat Transfer 1023 | . 399 . . . 108 . . 63 156 297 Siege Activations . | . . . . . . . . . . . Robots Corrupted . | . . . . . . . . . . . Combat Hostiles . | . . . . . . . . . . . Parts Fried . | . . . . . . . . . . . Impact Corruptions . | . . . . . . . . . . . Robots Melted 1 | . 1 . . . . . . . . . Combat Hostiles 1 | . 1 . . . . . . . . . Parts Melted 5 | . 5 . . . . . . . . . Heat Transferred 962 | . 962 . . . . . . . . . Parts Sabotaged . | . . . . . . . . . . . Parts Stolen 1 | . . . . . . . . . 1 . Parts Stripped . | . . . . . . . . . . . Power Chain Reactions . | . . . . . . . . . . . Missiles Intercepted . | . . . . . . . . . . . Alert | -11 -10 -10 -10 -9 -8 -7 -6 -6 -6 -6 ------- Run | Jun Mat Min Exi Min Mat Fac Fac Low Low Zio Peak Influence 198 | . 198 185 . . 152 112 12 . . . Initial 68 | . . 19 . . . 68 7 . . . Average 60 | . 71 120 . . 87 37 11 . . . Maximum Alert Level . | . . . . . . . . . . . Low Security (%) 100 | 100 100 100 . 100 100 100 100 . . . Level 1 . | . . . . . . . . . . . Level 2 . | . . . . . . . . . . . Level 3 . | . . . . . . . . . . . Level 4 . | . . . . . . . . . . . Level 5 . | . . . . . . . . . . . High Security . | . . . . . . . . . . . Max Security . | . . . . . . . . . . . Squads Dispatched 6 | . 3 . . . 2 1 . . . . Investigation 2 | . 1 . . . 1 . . . . . Extermination 1 | . . . . . . 1 . . . . Reinforcement 3 | . 2 . . . 1 . . . . . Assault . | . . . . . . . . . . . Garrison . | . . . . . . . . . . . Intercept . | . . . . . . . . . . . Searches Triggered . | . . . . . . . . . . . Construction Impeded . | . . . . . . . . . . . Haulers Reinforced . | . . . . . . . . . . . Active Scanning Responses . | . . . . . . . . . . . Cargo Convoy Interrupts . | . . . . . . . . . . . Stealth | -11 -10 -10 -10 -9 -8 -7 -6 -6 -6 -6 --------- Run | Jun Mat Min Exi Min Mat Fac Fac Low Low Zio Distress Signals 1 | . 1 . . . . . . . . . Communications Jammed . | . . . . . . . . . . . Distress Signals . | . . . . . . . . . . . Times Spotted 112 | . 19 6 . . 5 7 . 1 12 62 Peak Tracking Total 27 | . 5 3 . . 3 3 . 1 4 27 Tactical Retreats 10 | . . . . . 2 . . . 2 6 Traps | -11 -10 -10 -10 -9 -8 -7 -6 -6 -6 -6 ------- Run | Jun Mat Min Exi Min Mat Fac Fac Low Low Zio Traps Triggered 3 | . 1 . . . 1 1 . . . . Indirectly . | . . . . . . . . . . . Trap Hack Attempts . | . . . . . . . . . . . Triggered . | . . . . . . . . . . . Disarmed . | . . . . . . . . . . . Reprogrammed . | . . . . . . . . . . . Reused . | . . . . . . . . . . . Traps Extracted . | . . . . . . . . . . . Installed . | . . . . . . . . . . . Triggered 4 | . . . . . . . . 4 . . Exploded 1 | . . . . . . . . . . 1 Machines | -11 -10 -10 -10 -9 -8 -7 -6 -6 -6 -6 ---------- Run | Jun Mat Min Exi Min Mat Fac Fac Low Low Zio Machines Disabled . | . . . . . . . . . . . Max in Single Turn . | . . . . . . . . . . . Machines Repaired . | . . . . . . . . . . . Machines Sabotaged . | . . . . . . . . . . . Overloaded Fab Kills . | . . . . . . . . . . . Hacking | -11 -10 -10 -10 -9 -8 -7 -6 -6 -6 -6 --------- Run | Jun Mat Min Exi Min Mat Fac Fac Low Low Zio Machines Accessed 13 | . . . 2 . 3 3 3 . 2 . Terminals 5 | . . . . . 3 . 2 . . . Fabricators 2 | . . . . . . 2 . . . . Repair Stations . | . . . . . . . . . . . Recycling Units 2 | . . . . . . 1 1 . . . Scanalyzers . | . . . . . . . . . . . Garrison Access . | . . . . . . . . . . . Total Hacks 29 | . . . 2 . 6 6 9 . 6 . Successful 22 | . . . 2 . 5 5 4 . 6 . Failed 7 | . . . . . 1 1 5 . . . Catastrophic 2 | . . . . . . 1 1 . . . Database Lockouts . | . . . . . . . . . . . Manual 8 | . . . 1 . 1 1 5 . . . Terminals 11 | . . . . . 6 . 5 . . . Fabricators 4 | . . . . . . 4 . . . . Repair Stations . | . . . . . . . . . . . Recycling Units 6 | . . . . . . 2 4 . . . Scanalyzers . | . . . . . . . . . . . Garrison Access . | . . . . . . . . . . . Terminal Hacks 13 | . . . 2 . 4 . 1 . 6 . Record 6 | . . . 1 . . . . . 5 . Robot Analysis 1 | . . . . . 1 . . . . . Open Door 1 | . . . . . . . . . 1 . Branch Access Points 2 | . . . . . 1 . 1 . . . Emergency Access Points 1 | . . . . . 1 . . . . . Zone Layout 1 | . . . . . 1 . . . . . EX-Prototype ID Bank 1 | . . . 1 . . . . . . . Fabricator Hacks 2 | . . . . . . 2 . . . . Network Status 1 | . . . . . . 1 . . . . Build 1 | . . . . . . 1 . . . . Repair Station Hacks . | . . . . . . . . . . . Recycling Unit Hacks 5 | . . . . . . 2 3 . . . Process 2 | . . . . . . 1 1 . . . Report Inventory 1 | . . . . . . . 1 . . . Retrieve Matter 2 | . . . . . . 1 1 . . . Scanalyzer . | . . . . . . . . . . . Garrison Access Hacks . | . . . . . . . . . . . Unauthorized Hacks 2 | . . . . . 1 1 . . . . Terminals 1 | . . . . . 1 . . . . . Disrupt 1 | . . . . . 1 . . . . . Fabricators 1 | . . . . . . 1 . . . . Fabnet 1 | . . . . . . 1 . . . . Repair Stations . | . . . . . . . . . . . Recycling Units . | . . . . . . . . . . . Scanalyzers . | . . . . . . . . . . . Garrison Access . | . . . . . . . . . . . Data Cores Recovered . | . . . . . . . . . . . Used . | . . . . . . . . . . . Hacking Detections 4 | . . . . . 1 2 1 . . . Full Trace Events . | . . . . . . . . . . . Feedback Events . | . . . . . . . . . . . Feedback Blocked . | . . . . . . . . . . . Robot Schematics Acquired 4 | . . . . . . . . . . 4 Robots Built . | . . . . . . . . . . . Authchips . | . . . . . . . . . . . Time . | . . . . . . . . . . . Total Robot Build Rating . | . . . . . . . . . . . Part Schematics Acquired 14 | . . . . . . . . . . 14 Parts Built 2 | . . . . . . 2 . . . . Authchips . | . . . . . . . . . . . Time 47 | . . . . . . 47 . . . . Total Part Build Rating 10 | . . . . . . 10 . . . . Parts Repaired . | . . . . . . . . . . . Time . | . . . . . . . . . . . Parts Recycled . | . . . . . . . . . . . Recycled Matter 74 | . . . . . . 24 50 . . . Retrieved Matter 74 | . . . . . . 24 50 . . . Retrieved Components . | . . . . . . . . . . . Parts Scanalyzed . | . . . . . . . . . . . Part Schematics Acquired . | . . . . . . . . . . . Parts Damaged . | . . . . . . . . . . . Bothacking | -11 -10 -10 -10 -9 -8 -7 -6 -6 -6 -6 ------------ Run | Jun Mat Min Exi Min Mat Fac Fac Low Low Zio Used RIF Installer . | . . . . . . . . . . . Robots Hacked . | . . . . . . . . . . . Non-combat . | . . . . . . . . . . . Combat . | . . . . . . . . . . . Robot Hacks Applied . | . . . . . . . . . . . Relay Couplers Released . | . . . . . . . . . . . Fabnet Peak Effective % 3 | . . . . . . . 3 3 3 3 Robots Rewired . | . . . . . . . . . . . Allies Hacked . | . . . . . . . . . . . Hacks Repelled . | . . . . . . . . . . . Allies | -11 -10 -10 -10 -9 -8 -7 -6 -6 -6 -6 -------- Run | Jun Mat Min Exi Min Mat Fac Fac Low Low Zio Total Allies . | . . . . . . . . . . . Largest Group . | . . . . . . . . . . . Highest-Rated Group . | . . . . . . . . . . . Highest-Rated Ally . | . . . . . . . . . . . Total Orders . | . . . . . . . . . . . Ally Attacks . | . . . . . . . . . . . Total Damage . | . . . . . . . . . . . Kills . | . . . . . . . . . . . Allies Corrupted . | . . . . . . . . . . . Allies Melted . | . . . . . . . . . . . Intel | -11 -10 -10 -10 -9 -8 -7 -6 -6 -6 -6 ------- Run | Jun Mat Min Exi Min Mat Fac Fac Low Low Zio Robot Analysis Total 1 | . . . . . 1 . . . . . Derelict Logs Recovered 2 | . . . . . . . . 1 . 1 Drone Launches . | . . . . . . . . . . . Drone Recoveries . | . . . . . . . . . . . Exploration | -11 -10 -10 -10 -9 -8 -7 -6 -6 -6 -6 ------------- Run | Jun Mat Min Exi Min Mat Fac Fac Low Low Zio Turns Passed 5700 | 59 927 385 761 66 376 1066 205 396 487 972 Spaces Moved 3793 | 43 406 195 397 38 227 861 186 321 336 783 Core 84 | 10 . . . . . . . . . 74 Treads . | . . . . . . . . . . . Legs 1126 | 33 406 195 397 17 78 . . . . . Wheels 2583 | . . . . 21 149 861 186 321 336 709 Hover . | . . . . . . . . . . . Flight . | . . . . . . . . . . . Fastest Speed 50 | 50 120 190 190 105 105 108 108 108 108 50 Average Speed 129 | 103 181 190 190 143 120 108 108 108 113 105 Slowest Speed 260 | 120 190 190 190 190 260 120 108 108 115 150 Overloaded Moves . | . . . . . . . . . . . Propulsion Burnouts . | . . . . . . . . . . . Robots Hopped . | . . . . . . . . . . . Cave-ins Triggered . | . . . . . . . . . . . Exploration Rate (%) 39 | 3 58 40 61 13 26 27 5 55 57 85 Regions Visited 10 Branch Regions 6 Pre-discovered Areas 2 | . . . 1 . . . . . 1 . Known Exits Taken 2 | . . . . . . . 1 1 . . Unknown Exits Taken 8 | 1 1 1 1 1 1 1 . . 1 . Scrap Searched 14 | . . 2 . 1 . . . 5 4 2 Spaces Dug 3 | . . . . . . 3 . . . . Terrain Destroyed 53 | . . 34 . . . 3 . 14 . 2 Melee 3 | . . . . . . 3 . . . . Projectile . | . . . . . . . . . . . AOE 50 | . . 34 . . . . . 14 . 2 Terrain Rammed . | . . . . . . . . . . . Walls Destroyed . | . . . . . . . . . . . Machines Disabled . | . . . . . . . . . . . Actions | -11 -10 -10 -10 -9 -8 -7 -6 -6 -6 -6 --------- Run | Jun Mat Min Exi Min Mat Fac Fac Low Low Zio Total 4294 | 54 515 203 406 50 293 979 189 350 398 857 Wait 175 | . 28 . . 6 28 65 . 12 30 6 Move 3783 | 42 405 194 396 37 226 860 185 320 335 783 Hop . | . . . . . . . . . . . Pick Up 52 | 6 18 . 4 2 7 8 . . 5 2 Fast Attach 27 | 6 2 . . . 3 5 1 2 2 6 Attach 22 | . 2 . . . 6 1 . 1 5 7 Detach 6 | . . . . . 3 . . 2 . 1 Swap 31 | . 4 4 1 3 3 9 1 3 . 3 Drop 43 | . 12 . 5 2 . 16 1 . . 7 Fire 142 | . 42 5 . . 17 8 . 10 21 39 Melee 11 | . . . . . . 7 1 . . 3 Ram . | . . . . . . . . . . . Kick 2 | . 2 . . . . . . . . . Crush . | . . . . . . . . . . . Escape Stasis . | . . . . . . . . . . . Rewire . | . . . . . . . . . . . Trap . | . . . . . . . . . . . Miscellaneous . | . . . . . . . . . . . Route ------- -11/Junkyard -10/Materials (discovered 2 exits: [*Mat] / [*Min]) -10/Mines -10/Exiles -9/Mines -8/Materials -7/Factory -6/Factory (discovered 2 exits: *Low x2) -6/Lower Caves -6/Lower Caves (discovered 2 exits: [Fac] / [*Zio]) -6/Zion (discovered 1 exit: [*Pro]) History --------- Turn | Location | Event 5 | -11/Junkyard | Discovered new exit (range 16) 60 | -11/Junkyard | Entered Materials 304 | -10/Materials | Build established: Mutant 621 | -10/Materials | Core integrity fell below 50% 622 | -10/Materials | Discovered new exit (range 6) 956 | -10/Materials | Discovered new exit (range 7) 987 | -10/Materials | Entered Mines 995 | -10/Mines | Met a Derelict bent on vengeance 1363 | -10/Mines | Deemed a non-threat by the Exiles lab entrance 1364 | -10/Mines | Discovered new exit (range 5) 1372 | -10/Mines | Entered Exiles 1423 | -10/Exiles | Met 8R-AWN 1453 | -10/Exiles | Met EX-HEX 1507 | -10/Exiles | Met EX-BIN 1529 | -10/Exiles | Aligned with FarCom system 1531 | -10/Exiles | Given EX-Vault access code 1577 | -10/Exiles | Opened EX-Vault 1593 | -10/Exiles | Found Trap Reconfigurator 1630 | -10/Exiles | Warned to stay clear of 0b10 Research branches 1685 | -10/Exiles | Met EX-DEC 1692 | -10/Exiles | Learned location of Zion (-6) 1751 | -10/Exiles | Discovered new exit (range 10) 1953 | -10/Exiles | Found Longsword +1 2133 | -10/Exiles | Left Exiles lab with Longsword +1 2133 | -10/Exiles | Entered Mines 2177 | -9/Mines | Found a hidden stash of uninstalled traps 2189 | -9/Mines | Discovered new exit (range 2) 2196 | -9/Mines | Received a Rocket Launcher from a helpful Derelict 2199 | -9/Mines | Entered Materials 2199 | -8/Materials | Evolved 4 slots: Propulsion x3, Utility x1 2513 | -8/Materials | Discovered new exit (range 15) 2575 | -8/Materials | Entered Factory 2575 | -7/Factory | Evolved 2 slots: Propulsion x1, Utility x1 3012 | -7/Factory | Fabricated Fusion Compressor? 3629 | -7/Factory | Discovered new exit (range 6) 3641 | -7/Factory | Entered another Factory area 3641 | -6/Factory | Evolved 2 slots: Utility x2 3724 | -6/Factory | Discovered new exit (range 15) 3827 | -6/Factory | Identified exit to Lower Caves 3846 | -6/Factory | Entered Lower Caves 3943 | -6/Lower Caves | Encountered a Warlord checkpoint 4209 | -6/Lower Caves | Identified exit to Lower Caves 4242 | -6/Lower Caves | Entered another Lower Caves area 4332 | -6/Lower Caves | Discovered new exit (range 10) 4348 | -6/Lower Caves | Destroyed 7 combat bots 4352 | -6/Lower Caves | Lost 4 parts (3n1w) 4561 | -6/Lower Caves | Build established: Skirmisher 4600 | -6/Lower Caves | Learned location of Armory (-4) 4600 | -6/Lower Caves | Learned Factory trap positions 4600 | -6/Lower Caves | Learned Extension emergency access door positions 4600 | -6/Lower Caves | Learned Factory stockpile data 4633 | -6/Lower Caves | Discovered new exit (range 7) 4729 | -6/Lower Caves | Entered Zion 4751 | -6/Zion | Found CR-A16's Pointy Stick 4861 | -6/Zion | Discovered new exit (range 11) 4967 | -6/Zion | Learned Factory stockpile data 5075 | -6/Zion | Visited the Megawrench Repair Shop 5085 | -6/Zion | Build established: Assassin 5358 | -6/Zion | Rebuked by Imprinter 5374 | -6/Zion | Attacked by Zionites 5472 | -6/Zion | System corruption reached 10% 5502 | -6/Zion | Lost 4 parts (1p2n1u) 5599 | -6/Zion | Core integrity fell below 50% 5608 | -6/Zion | Lost 6 parts (2n1u3w) 5658 | -6/Zion | Released all parts (7) 5677 | -6/Zion | Core integrity fell below 20% 5701 | -6/Zion | Destroyed by YS-BIS(z) with Makeshift Laser Last Messages --------------- 05665_ 8K-DCV(z) heat short circuits Mak. Leg. 05665_ KH-81G(m) repairs 8K-DCV(z). 05665_ 8K-DCV(z) overheating. 05666_ System corrupted: Component data lost. 05666_ 8K-DCV(z) heat short circuits Mak. Power Source. 05666_ Acquired Mak. Leg. 05667_ KH-81G(m) repairs Hpw. Tractor Beam. 05668_ 2V-LAN(z) pulls a Mak. Spear out of the Twisted Machinery. 05668_ 8K-DCV(z) overheating. 05669_ 8K-DCV(z) heat damages core (-3). 05670_ TX-480(z) pulls a Mak. Hammer out of the Twisted Machinery. 05673_ Destroyed Mak. Power Source. 05674_ GT-WP0(z) pulls a Mak. Sword out of the Twisted Machinery. 05674_ Mak. Leg severed. 05680_ M5-K1J(z) pulls a Mak. Hammer out of the Twisted Machinery. 05680_ 5J-IA8(z) pulls a Mak. Shrapnel Gun out of the Twisted Machinery. 05682_ Mak. Leg destroyed. 05686_ System corrupted: IFF burst signal emitted. 05697_ GS-M1P(z) pulls a Mak. Shrapnel Gun out of the Twisted Machinery. 05698_ HH-B6U(z) pulls a Mak. Shrapnel Gun out of the Twisted Machinery. Map ----- +----------------------------------------------------+ | ####?##""""####?###?#?##??#####??#?#???????#?????? | | ?#?###""" ""#??#######?###??##??#####?##?#???#???? | | ?#####"" ""#?##########?######?????#???####??#??# | | #???#?#" "####?###?#########"###?#####??##?#?#?## | | ####?##" "###?#?##?###"#"#"""""##########?####?#? | | ######## ##"##########"""""""""####"###???###???? | | ###### ###""#""##"" ""#"#"""#####????#? | | ??#### " """""""##"" ""#"""""#####??#?# | | ###?##"""" " """##"" """" """""#"#?#??? | | ######"" """"""" """####?#? | | ####""" "" """" """####? | | ###"" """" "" "" """#?? | | ##"" """""" """ ""#?# | | ##" """""" "" """ ""##? | | ##"" """" """ "" """#? | | """"" """" "" """ ""##? | | """"""" """ """" """" ""### | | """"""""""""" z """"" """" """"#### | | ""#""##"""""" "#""" """ """"""#"### | | """"######" "" """" "" "#"####?##? | | """"#"#""""" "" """""z z ""#"#"#?### | | """"""""""" """""" z z """"""#?### | | """""" """""" ""##### | | """ """"""" "#"#?# | | """### | | @ ""### | | ""### | | """ """###"""""""" "" ""##?? | | " """ """"""""""""" "" """##?# | | "" """"#"""""#""""""""""" " ""##### | | "" """"##"#"###"#####"""" """" """##?# | | #" "" ""#"#"#############""" l """z" ""#### | | """""""####################" ""##" "#### | | ##"""""###########?#######"" """#" """"### | | #############???#######"#""" """"" """##?# | | ?############??##?#?###""" "" ""#### | | ##?######?##??###??####""" """ """## | | ###?#?###??##???########"" """" ""#""""""### | | ########?###?#?#??#?####" #""" ""##""#""#### | | ##########??#????#??#?##" """" ""##"#""#"## | | ##########???##??##?###"" #""" "########### | | #####???#####????#??###"" """" "###"#"""### | | #####?######?####?#?##""" """" """""""""# | | ###?##??#?##????##??###"" """ | | ####?#???###??#?####?###" """ | | ######?#####?#?#??##??##"" "#"""""""" ""# | | ########?###?######?###"#"" "###"""""" "#### | | #######?##?#?##?#???##"#""" ""####"#""" "#"## | | ##############?###?####""" """####"""" """?# | | ###########?####?#?#####" """""""" ""#### | +----------------------------------------------------+ Best States ------------- Heat Dissipation 45 Energy Generation 18 Energy Capacity 290 Matter Stores 300 Matter Capacity 300 Sight Range 22 Terrain Scan Range 20 Terrain Scan Density 210 Armor Coverage 225 Evasion (%) 55 Targeting Accuracy 6 Melee Accuracy 8 Armor Integrity Analysis 30 Recoil Reduction 2 Defensive Hacking 10 Item Schematics ----------------- Beamcaster | -6/Zion | Archive Field Propulsion Drive | -6/Zion | Archive Power Amplifier | -6/Zion | Archive Imp. Kinecellerator | -6/Zion | Archive Magnetic Acceleration Cannon | -6/Zion | Archive Enh. Gauss Cannon | -6/Zion | Archive Flexi-carbon Leg | -6/Zion | Archive Adv. Hardlight Generator | -6/Zion | Archive Adv. Actuator Array | -6/Zion | Archive Lgt. Fission Core | -6/Zion | Archive Arm. Medium Treads | -6/Zion | Archive Mak. Cloaking Device | -6/Zion | Archive Adv. Shield Generator | -6/Zion | Archive Hvy. Flak Cannon | -6/Zion | Archive Robot Schematics ------------------ M-28 Smith | -6/Zion | Archive A-02 Transporter | -6/Zion | Archive T-07 Excavator | -6/Zion | Archive G-73 Enforcer | -6/Zion | Archive Fabricated ------------ Fusion Compressor | x2 | -7/Factory | Preloaded Alien Tech Used ----------------- None Achievements -------------- None Challenges ------------ None Game ------ Seed LobotomyFrostDerivative Manual? 0 Play Time 00:33:10 Cumulative 331.4 hours Start 2023.04.03 @ 23:32:53 End 2023.04.04 @ 00:05:02 Sessions 1 Manual Loads 0 Difficulty Rogue Special Mode None Game No. 227 Rogue 227 Adventurer 0 Explorer 0 Win Type - Total 22 Types 19/0/2/1/0/0/0/0/0 Lore% 70 Gallery% 84 Achievement% 67 Wizard Run 0 Options --------- ASCII 0 Keyboard 1 Movement Numpad Keybinds 0 Fullscreen 2 Font 18/SmallcapsGlow Map View 76x50 Tactical HUD 1 Map Filters NONE Filters NONE Steam 1 RUN: 4c6522ca-a268-4e71-b0ed-7b868d55acf1